[Event "*** Titled Tuesday Blitz"]
[Site "Chess.com"]
[Date "2021.02.16"]
[Round "5"]
[White "Ze-Pequeno"]
[Black "annacramling"]
[Result "1-0"]
[WhiteElo "2286"]
[BlackElo "2114"]
[TimeControl "180+1"]
[EndTime "10:57:36 PST"]
[Termination "Ze-Pequeno won by resignation"]

1. e4 {[%clk 0:03:00.9]} 1... c5 {[%clk 0:02:33.3]} 2. Nf3 {[%clk 0:02:59.6]}
2... Nc6 {[%clk 0:02:32.9]} 3. d4 {[%clk 0:02:59.6]} 3... cxd4 {[%clk
0:02:33.8]} 4. Nxd4 {[%clk 0:03:00.1]} 4... Nf6 {[%clk 0:02:33.8]} 5. Nc3 {[%clk
0:03:00.1]} 5... e6 {[%clk 0:02:33.1]} 6. Ndb5 {[%clk 0:02:59.5]} 6... d6 {[%clk
0:02:29.4]} 7. Bf4 {[%clk 0:02:58.6]} 7... e5 {[%clk 0:02:29.1]} 8. Bg5 {[%clk
0:02:59.2]} 8... a6 {[%clk 0:02:27.6]} 9. Na3 {[%clk 0:02:59.2]} 9... b5 {[%clk
0:02:27.2]} 10. Bxf6 {[%clk 0:02:59.2]} 10... gxf6 {[%clk 0:02:27.3]} 11. Nd5
{[%clk 0:03:00.1]} 11... f5 {[%clk 0:02:26.3]} 12. c3 {[%clk 0:02:59.9]} 12...
Bg7 {[%clk 0:02:24.6]} 13. exf5 {[%clk 0:02:59.7]} 13... Bxf5 {[%clk 0:02:24.3]}
14. Nc2 {[%clk 0:03:00.6]} 14... Be6 {[%clk 0:02:23.3]} 15. Nce3 {[%clk
0:03:01.5]} 15... O-O {[%clk 0:02:23.4]} 16. Bd3 {[%clk 0:03:00.5]} 16... f5
{[%clk 0:02:23.1]} 17. Qh5 {[%clk 0:03:00]} 17... e4 {[%clk 0:02:12.4]} 18. Bc2
{[%clk 0:02:58.9]} 18... Ne5 {[%clk 0:01:40.7]} 19. Rd1 {[%clk 0:02:56.8]} 19...
Rc8 {[%clk 0:01:32.6]} 20. O-O {[%clk 0:02:35.5]} 20... Qe8 {[%clk 0:01:31.6]}
21. Qxe8 {[%clk 0:01:30.4]} 21... Rfxe8 {[%clk 0:01:32.5]} 22. Nf4 {[%clk
0:01:30.8]} 22... Bc4 {[%clk 0:01:20.6]} 23. Bb3 {[%clk 0:01:16.1]} 23... Bxb3
{[%clk 0:01:05.7]} 24. axb3 {[%clk 0:01:14.5]} 24... Bh6 {[%clk 0:00:50.9]} 25.
Nfd5 {[%clk 0:01:07]} 25... f4 {[%clk 0:00:40.1]} 26. Nf6+ {[%clk 0:00:55.6]}
26... Kf7 {[%clk 0:00:35.3]} 27. Nxe8 {[%clk 0:00:55.2]} 27... fxe3 {[%clk
0:00:27.2]} 28. Nxd6+ {[%clk 0:00:54.1]} 28... Ke6 {[%clk 0:00:25.1]} 29. fxe3
{[%clk 0:00:53.9]} 29... Bxe3+ {[%clk 0:00:24.7]} 30. Kh1 {[%clk 0:00:54.1]}
30... Rd8 {[%clk 0:00:18.6]} 31. Nxe4 {[%clk 0:00:53.6]} 31... Rxd1 {[%clk
0:00:12.6]} 32. Rxd1 {[%clk 0:00:53.1]} 32... Ng4 {[%clk 0:00:12.1]} 33. h3
{[%clk 0:00:51.3]} 33... Nh6 {[%clk 0:00:11]} 34. Rd3 {[%clk 0:00:46]} 34... Nf5
{[%clk 0:00:08.6]} 35. g4 {[%clk 0:00:43.5]} 35... Ke5 {[%clk 0:00:06.2]} 36.
gxf5 {[%clk 0:00:43.5]} 36... Kxe4 {[%clk 0:00:06.5]} 37. Rxe3+ {[%clk
0:00:43.7]} 1-0

[Event "*** Titled Tuesday Blitz"]
[Site "Chess.com"]
[Date "2021.02.16"]
[Round "5"]
[White "Fortitudine"]
[Black "milenapn"]
[Result "1-0"]
[WhiteElo "2335"]
[BlackElo "2101"]
[TimeControl "180+1"]
[EndTime "10:57:39 PST"]
[Termination "Fortitudine won by checkmate"]

1. c4 {[%clk 0:02:59.9]} 1... g6 {[%clk 0:02:47.5]} 2. g3 {[%clk 0:02:58.7]}
2... Bg7 {[%clk 0:02:47.6]} 3. Bg2 {[%clk 0:02:59.3]} 3... Nf6 {[%clk
0:02:48.1]} 4. Nc3 {[%clk 0:02:59.5]} 4... d6 {[%clk 0:02:48.1]} 5. e4 {[%clk
0:02:59.2]} 5... O-O {[%clk 0:02:48.3]} 6. d3 {[%clk 0:02:59.2]} 6... Nbd7
{[%clk 0:02:48.8]} 7. Nge2 {[%clk 0:02:59.3]} 7... e5 {[%clk 0:02:48.6]} 8. O-O
{[%clk 0:02:59.4]} 8... c6 {[%clk 0:02:48.2]} 9. h3 {[%clk 0:02:58.3]} 9... Ne8
{[%clk 0:02:48.4]} 10. Be3 {[%clk 0:02:57.5]} 10... f5 {[%clk 0:02:48.5]} 11.
Qd2 {[%clk 0:02:57.2]} 11... Nef6 {[%clk 0:02:47.5]} 12. d4 {[%clk 0:02:54.7]}
12... Qe7 {[%clk 0:02:44.7]} 13. exf5 {[%clk 0:02:50.4]} 13... gxf5 {[%clk
0:02:43.8]} 14. dxe5 {[%clk 0:02:46.8]} 14... dxe5 {[%clk 0:02:44.7]} 15. Rad1
{[%clk 0:02:41.2]} 15... Nc5 {[%clk 0:02:18.6]} 16. Qd6 {[%clk 0:02:27.4]} 16...
Qxd6 {[%clk 0:02:17.6]} 17. Rxd6 {[%clk 0:02:28.3]} 17... Ne6 {[%clk 0:02:16.3]}
18. Rfd1 {[%clk 0:02:18.8]} 18... Rf7 {[%clk 0:02:13.3]} 19. f4 {[%clk
0:02:14.7]} 19... Bf8 {[%clk 0:01:57.4]} 20. R6d2 {[%clk 0:02:05.2]} 20... e4
{[%clk 0:01:56.3]} 21. Nd4 {[%clk 0:01:41.4]} 21... Nc5 {[%clk 0:01:53.2]} 22.
Bf1 {[%clk 0:01:36.6]} 22... Rg7 {[%clk 0:01:47.8]} 23. Kh2 {[%clk 0:01:35.3]}
23... Nh5 {[%clk 0:01:42.5]} 24. Rg2 {[%clk 0:01:30.4]} 24... Rf7 {[%clk
0:00:53.5]} 25. b4 {[%clk 0:01:19.3]} 25... Ne6 {[%clk 0:00:52.1]} 26. a3 {[%clk
0:01:15.5]} 26... Nxd4 {[%clk 0:00:46.9]} 27. Bxd4 {[%clk 0:01:16.4]} 27... Be6
{[%clk 0:00:46.6]} 28. Be3 {[%clk 0:01:14.6]} 28... Bg7 {[%clk 0:00:42.4]} 29.
Na4 {[%clk 0:01:14.8]} 29... b6 {[%clk 0:00:41.2]} 30. Be2 {[%clk 0:01:12.1]}
30... Nf6 {[%clk 0:00:40.1]} 31. g4 {[%clk 0:01:10.1]} 31... fxg4 {[%clk
0:00:11.3]} 32. hxg4 {[%clk 0:01:11]} 32... b5 {[%clk 0:00:11.6]} 33. cxb5
{[%clk 0:01:08.9]} 33... Bb3 {[%clk 0:00:10.8]} 34. Rd6 {[%clk 0:01:01.5]} 34...
Bxa4 {[%clk 0:00:10]} 35. Bc4 {[%clk 0:01:02]} 35... Bxb5 {[%clk 0:00:08.7]} 36.
Bxf7+ {[%clk 0:00:59.5]} 36... Kxf7 {[%clk 0:00:09.6]} 37. g5 {[%clk 0:00:59.2]}
37... Ne8 {[%clk 0:00:08.6]} 38. Rd7+ {[%clk 0:00:58.6]} 38... Kf8 {[%clk
0:00:08.4]} 39. Bc5+ {[%clk 0:00:58.1]} 39... Kg8 {[%clk 0:00:08.7]} 40. f5
{[%clk 0:00:58.5]} 40... Bf8 {[%clk 0:00:08.8]} 41. g6 {[%clk 0:00:57.7]} 41...
Bxc5 {[%clk 0:00:08.1]} 42. gxh7+ {[%clk 0:00:57.9]} 42... Kh8 {[%clk
0:00:08.4]} 43. Rg8# {[%clk 0:00:58.6]} 1-0

[Event "*** Titled Tuesday Blitz"]
[Site "Chess.com"]
[Date "2021.02.16"]
[Round "5"]
[White "rynos0411"]
[Black "grandcoach"]
[Result "1-0"]
[WhiteElo "2469"]
[BlackElo "2237"]
[TimeControl "180+1"]
[EndTime "10:57:42 PST"]
[Termination "rynos0411 won by resignation"]

1. d4 {[%clk 0:03:00.9]} 1... Nf6 {[%clk 0:02:57.8]} 2. c4 {[%clk 0:03:01.1]}
2... e6 {[%clk 0:02:57.9]} 3. Nf3 {[%clk 0:03:01.3]} 3... d5 {[%clk 0:02:57.2]}
4. Nc3 {[%clk 0:03:01.4]} 4... c5 {[%clk 0:02:57.3]} 5. cxd5 {[%clk 0:03:00]}
5... Nxd5 {[%clk 0:02:56.3]} 6. e4 {[%clk 0:02:59.5]} 6... Nxc3 {[%clk
0:02:56.8]} 7. bxc3 {[%clk 0:03:00]} 7... cxd4 {[%clk 0:02:57.2]} 8. cxd4 {[%clk
0:03:00.6]} 8... Nc6 {[%clk 0:02:57.7]} 9. Bc4 {[%clk 0:02:56.3]} 9... Bb4+
{[%clk 0:02:57.3]} 10. Bd2 {[%clk 0:02:54.9]} 10... Bxd2+ {[%clk 0:02:57.9]} 11.
Qxd2 {[%clk 0:02:55.8]} 11... O-O {[%clk 0:02:55.2]} 12. O-O {[%clk 0:02:55.5]}
12... b6 {[%clk 0:02:55.8]} 13. Rfd1 {[%clk 0:02:48.3]} 13... Bb7 {[%clk
0:02:54]} 14. Rac1 {[%clk 0:02:48.1]} 14... Rc8 {[%clk 0:02:51.7]} 15. h3 {[%clk
0:02:44.3]} 15... Qd6 {[%clk 0:02:31.9]} 16. Qe2 {[%clk 0:02:36.2]} 16... Rfd8
{[%clk 0:02:27.2]} 17. d5 {[%clk 0:02:28.8]} 17... exd5 {[%clk 0:02:14.6]} 18.
Bxd5 {[%clk 0:02:29.7]} 18... Qe7 {[%clk 0:02:03.8]} 19. Qe3 {[%clk 0:02:07.9]}
19... Nb4 {[%clk 0:01:49.4]} 20. Bxb7 {[%clk 0:01:36.7]} 20... Qxb7 {[%clk
0:01:50.3]} 21. a3 {[%clk 0:01:33.8]} 21... Rxd1+ {[%clk 0:01:42.2]} 22. Rxd1
{[%clk 0:01:33.7]} 22... Nc2 {[%clk 0:01:38.4]} 23. Qd3 {[%clk 0:01:29.8]} 23...
h6 {[%clk 0:01:29]} 24. Rc1 {[%clk 0:01:19.6]} 24... Qc7 {[%clk 0:00:52.3]} 25.
Ne1 {[%clk 0:00:38.2]} 25... Rd8 {[%clk 0:00:08.4]} 26. Qxc2 {[%clk 0:00:36.1]}
26... Qxc2 {[%clk 0:00:07.7]} 27. Rxc2 {[%clk 0:00:35.1]} 27... Rd1 {[%clk
0:00:08.4]} 28. Kf1 {[%clk 0:00:35.4]} 28... Ra1 {[%clk 0:00:08]} 29. Rc3 {[%clk
0:00:35.2]} 29... a6 {[%clk 0:00:07.6]} 30. Ke2 {[%clk 0:00:34]} 30... b5 {[%clk
0:00:08]} 31. Nc2 {[%clk 0:00:33]} 31... Ra2 {[%clk 0:00:07.2]} 32. Kd3 {[%clk
0:00:31.6]} 32... a5 {[%clk 0:00:07]} 33. Rc5 {[%clk 0:00:30.4]} 33... b4 {[%clk
0:00:05.9]} 34. axb4 {[%clk 0:00:30.8]} 34... axb4 {[%clk 0:00:06]} 35. Rb5
{[%clk 0:00:29.3]} 35... Rb2 {[%clk 0:00:04.9]} 36. Rxb4 {[%clk 0:00:29]} 1-0

[Event "*** Titled Tuesday Blitz"]
[Site "Chess.com"]
[Date "2021.02.16"]
[Round "5"]
[White "elextranjero00"]
[Black "Zkid"]
[Result "0-1"]
[WhiteElo "2633"]
[BlackElo "2817"]
[TimeControl "180+1"]
[EndTime "10:57:43 PST"]
[Termination "Zkid won by resignation"]

1. d4 {[%clk 0:03:00.9]} 1... d5 {[%clk 0:02:58.3]} 2. c4 {[%clk 0:03:00.7]}
2... dxc4 {[%clk 0:02:57.3]} 3. Nf3 {[%clk 0:02:59.5]} 3... Nf6 {[%clk
0:02:57.3]} 4. e3 {[%clk 0:02:59.7]} 4... e6 {[%clk 0:02:56]} 5. Bxc4 {[%clk
0:02:59.7]} 5... c5 {[%clk 0:02:53.9]} 6. O-O {[%clk 0:02:59]} 6... a6 {[%clk
0:02:54.1]} 7. dxc5 {[%clk 0:02:53.2]} 7... Qxd1 {[%clk 0:02:52]} 8. Rxd1 {[%clk
0:02:54.1]} 8... Bxc5 {[%clk 0:02:52.3]} 9. b3 {[%clk 0:02:42.6]} 9... b6 {[%clk
0:02:49.3]} 10. Bb2 {[%clk 0:02:42.4]} 10... Bb7 {[%clk 0:02:49]} 11. Ne5 {[%clk
0:02:35.6]} 11... Nbd7 {[%clk 0:02:41.2]} 12. Nd2 {[%clk 0:02:29.5]} 12... Nxe5
{[%clk 0:02:38.6]} 13. Bxe5 {[%clk 0:02:29.3]} 13... Ke7 {[%clk 0:02:37.5]} 14.
Be2 {[%clk 0:02:18.5]} 14... Rhd8 {[%clk 0:02:31]} 15. Nc4 {[%clk 0:02:17.1]}
15... a5 {[%clk 0:02:15.6]} 16. a4 {[%clk 0:01:57.5]} 16... Bd5 {[%clk
0:01:49.4]} 17. Bc7 {[%clk 0:01:40.6]} 17... Rdc8 {[%clk 0:01:25.1]} 18. Bxb6
{[%clk 0:01:32.6]} 18... Bxc4 {[%clk 0:01:23.1]} 19. Bxc5+ {[%clk 0:01:31.7]}
19... Rxc5 {[%clk 0:01:24]} 20. Bxc4 {[%clk 0:01:32]} 20... Ne4 {[%clk 0:01:24]}
21. Rd4 {[%clk 0:01:06]} 21... Nd6 {[%clk 0:01:22.4]} 22. Rad1 {[%clk
0:01:00.4]} 22... Nxc4 {[%clk 0:01:20]} 23. bxc4 {[%clk 0:00:58]} 23... Ra7
{[%clk 0:01:14]} 24. Kf1 {[%clk 0:00:37.5]} 24... Rb7 {[%clk 0:01:13.2]} 25. Ke2
{[%clk 0:00:37.5]} 25... f5 {[%clk 0:01:10.1]} 26. f4 {[%clk 0:00:35.7]} 26...
Kf6 {[%clk 0:01:08.7]} 27. R1d2 {[%clk 0:00:29.9]} 27... Rb4 {[%clk 0:01:05.4]}
28. Ra2 {[%clk 0:00:17.6]} 28... Rcxc4 {[%clk 0:01:01.9]} 29. Rxc4 {[%clk
0:00:17.7]} 29... Rxc4 {[%clk 0:01:02.8]} 30. Kd3 {[%clk 0:00:17.1]} 30... Re4
{[%clk 0:01:01.4]} 31. g3 {[%clk 0:00:10.7]} 31... h6 {[%clk 0:01:00.5]} 32. Kd2
{[%clk 0:00:07.4]} 32... g5 {[%clk 0:00:58.7]} 33. Kd3 {[%clk 0:00:07.6]} 33...
e5 {[%clk 0:00:57.8]} 34. fxe5+ {[%clk 0:00:03.8]} 34... Kxe5 {[%clk 0:00:58.7]}
35. Kd2 {[%clk 0:00:03.4]} 35... Rb4 {[%clk 0:00:57.5]} 36. Kd3 {[%clk
0:00:03.5]} 36... Rb3+ {[%clk 0:00:54.5]} 37. Kd2 {[%clk 0:00:03.3]} 37... Ke4
{[%clk 0:00:54.5]} 38. Rc2 {[%clk 0:00:03.7]} 38... Rd3+ {[%clk 0:00:52.4]} 39.
Kc1 {[%clk 0:00:03]} 39... Rd5 {[%clk 0:00:47.4]} 40. Rc4+ {[%clk 0:00:02.1]}
40... Kxe3 {[%clk 0:00:45.7]} 41. Rc6 {[%clk 0:00:03]} 41... h5 {[%clk 0:00:44]}
42. Rf6 {[%clk 0:00:02]} 42... f4 {[%clk 0:00:43.9]} 43. gxf4 {[%clk 0:00:02.9]}
43... gxf4 {[%clk 0:00:44.6]} 0-1

[Event "*** Titled Tuesday Blitz"]
[Site "Chess.com"]
[Date "2021.02.16"]
[Round "5"]
[White "lukas_111111"]
[Black "cassoulet"]
[Result "0-1"]
[WhiteElo "2579"]
[BlackElo "2738"]
[TimeControl "180+1"]
[EndTime "10:57:43 PST"]
[Termination "cassoulet won by checkmate"]

1. d4 {[%clk 0:03:00.9]} 1... d5 {[%clk 0:02:59.3]} 2. c4 {[%clk 0:03:00.6]}
2... e5 {[%clk 0:02:55.6]} 3. dxe5 {[%clk 0:02:58.8]} 3... d4 {[%clk 0:02:56.5]}
4. Nf3 {[%clk 0:02:58.8]} 4... Nc6 {[%clk 0:02:57.1]} 5. a3 {[%clk 0:02:57.6]}
5... a5 {[%clk 0:02:57.2]} 6. Nbd2 {[%clk 0:02:47.6]} 6... Bf5 {[%clk
0:02:56.9]} 7. g3 {[%clk 0:02:43.5]} 7... Qd7 {[%clk 0:02:56.6]} 8. Bg2 {[%clk
0:02:42.2]} 8... h5 {[%clk 0:02:54.2]} 9. h4 {[%clk 0:02:32.6]} 9... a4 {[%clk
0:02:51.4]} 10. O-O {[%clk 0:02:29.5]} 10... Bh3 {[%clk 0:02:49.4]} 11. b4
{[%clk 0:02:15.3]} 11... Bxg2 {[%clk 0:02:29.7]} 12. Kxg2 {[%clk 0:02:14.5]}
12... Nh6 {[%clk 0:02:30.3]} 13. b5 {[%clk 0:02:02.7]} 13... Ne7 {[%clk
0:02:27.2]} 14. Ne4 {[%clk 0:01:59.5]} 14... Nef5 {[%clk 0:02:25.8]} 15. Qd3
{[%clk 0:01:41]} 15... Ng4 {[%clk 0:02:21.4]} 16. Bf4 {[%clk 0:01:35]} 16... Be7
{[%clk 0:02:19]} 17. Rad1 {[%clk 0:01:23.8]} 17... Rd8 {[%clk 0:02:18.1]} 18.
Qc2 {[%clk 0:01:12.5]} 18... O-O {[%clk 0:02:07.9]} 19. Qxa4 {[%clk 0:01:08.6]}
19... Ra8 {[%clk 0:02:08]} 20. Qc2 {[%clk 0:01:07.8]} 20... Rxa3 {[%clk
0:02:06.4]} 21. Qb2 {[%clk 0:00:52.2]} 21... Rfa8 {[%clk 0:02:00.2]} 22. Nxd4
{[%clk 0:00:51.9]} 22... Ra2 {[%clk 0:01:58.9]} 23. Qc3 {[%clk 0:00:46.5]} 23...
Nxd4 {[%clk 0:01:56.3]} 24. Rxd4 {[%clk 0:00:44.2]} 24... Qf5 {[%clk 0:01:52.9]}
25. Qf3 {[%clk 0:00:39.9]} 25... R8a3 {[%clk 0:01:44.3]} 26. Rd3 {[%clk
0:00:37.2]} 26... Nxe5 {[%clk 0:01:35.6]} 27. Bxe5 {[%clk 0:00:34.3]} 27... Qxe5
{[%clk 0:01:36.5]} 28. Rfd1 {[%clk 0:00:26.7]} 28... Ra8 {[%clk 0:01:26.4]} 29.
Rd5 {[%clk 0:00:24.6]} 29... Qe6 {[%clk 0:01:23]} 30. Rd7 {[%clk 0:00:19.3]}
30... Bd6 {[%clk 0:01:17.8]} 31. R1xd6 {[%clk 0:00:10.7]} 31... cxd6 {[%clk
0:01:16.9]} 32. Rxb7 {[%clk 0:00:10.7]} 32... Rf8 {[%clk 0:01:09.8]} 33. Ng5
{[%clk 0:00:10.4]} 33... Qxe2 {[%clk 0:01:05.5]} 34. Qxe2 {[%clk 0:00:10.2]}
34... Rxe2 {[%clk 0:01:06.4]} 35. Rd7 {[%clk 0:00:09.4]} 35... f6 {[%clk
0:01:00.9]} 36. Nf3 {[%clk 0:00:08.7]} 36... Rc8 {[%clk 0:01:00.9]} 37. b6
{[%clk 0:00:08.2]} 37... Rb2 {[%clk 0:01:00]} 38. b7 {[%clk 0:00:06.5]} 38...
Rb8 {[%clk 0:00:57.3]} 39. Rxd6 {[%clk 0:00:06.8]} 39... R8xb7 {[%clk
0:00:57.4]} 40. Rd5 {[%clk 0:00:07]} 40... Rc2 {[%clk 0:00:57.3]} 41. Rxh5
{[%clk 0:00:06.3]} 41... Rbb2 {[%clk 0:00:57.4]} 42. Nd4 {[%clk 0:00:05.2]}
42... Rxf2+ {[%clk 0:00:51]} 43. Kh3 {[%clk 0:00:05.3]} 43... g6 {[%clk
0:00:49.5]} 44. Rd5 {[%clk 0:00:05.1]} 44... f5 {[%clk 0:00:49.6]} 45. h5 {[%clk
0:00:04.3]} 45... Rh2# {[%clk 0:00:49.2]} 0-1

[Event "*** Titled Tuesday Blitz"]
[Site "Chess.com"]
[Date "2021.02.16"]
[Round "5"]
[White "kidagent"]
[Black "djano"]
[Result "0-1"]
[WhiteElo "2306"]
[BlackElo "2479"]
[TimeControl "180+1"]
[EndTime "10:57:46 PST"]
[Termination "djano won by resignation"]

1. e4 {[%clk 0:03:00.9]} 1... c5 {[%clk 0:02:59.7]} 2. Nf3 {[%clk 0:03:00.9]}
2... Nc6 {[%clk 0:03:00]} 3. d4 {[%clk 0:03:00.9]} 3... cxd4 {[%clk 0:03:00.9]}
4. Nxd4 {[%clk 0:03:01.3]} 4... g6 {[%clk 0:03:00.2]} 5. Nc3 {[%clk 0:03:00]}
5... Bg7 {[%clk 0:02:59.8]} 6. Be3 {[%clk 0:03:00.1]} 6... Nf6 {[%clk
0:02:58.9]} 7. Be2 {[%clk 0:02:53.6]} 7... O-O {[%clk 0:02:58.2]} 8. Nb3 {[%clk
0:02:54.2]} 8... b6 {[%clk 0:02:54.1]} 9. O-O {[%clk 0:02:54.2]} 9... Bb7 {[%clk
0:02:54.6]} 10. f4 {[%clk 0:02:51.8]} 10... d6 {[%clk 0:02:50.1]} 11. h3 {[%clk
0:02:39.2]} 11... Nd7 {[%clk 0:02:48.5]} 12. Qd2 {[%clk 0:02:36.2]} 12... Nc5
{[%clk 0:02:44.9]} 13. Bf3 {[%clk 0:02:33.7]} 13... Rc8 {[%clk 0:02:33.8]} 14.
Rae1 {[%clk 0:02:32.2]} 14... e6 {[%clk 0:02:23]} 15. g4 {[%clk 0:02:29.7]}
15... Qe7 {[%clk 0:02:18.1]} 16. f5 {[%clk 0:02:19.2]} 16... Ne5 {[%clk
0:02:17]} 17. Bg2 {[%clk 0:01:52.9]} 17... Nc4 {[%clk 0:02:14.2]} 18. Qc1 {[%clk
0:01:53.3]} 18... Nxe3 {[%clk 0:02:11.6]} 19. Qxe3 {[%clk 0:01:54.2]} 19... Qh4
{[%clk 0:01:56.6]} 20. Nd4 {[%clk 0:01:40.4]} 20... d5 {[%clk 0:01:44.1]} 21. e5
{[%clk 0:01:32.7]} 21... Bh6 {[%clk 0:01:21.6]} 22. Qf2 {[%clk 0:01:25.1]} 22...
Qxf2+ {[%clk 0:01:16.4]} 23. Rxf2 {[%clk 0:01:26]} 23... gxf5 {[%clk 0:01:13.2]}
24. gxf5 {[%clk 0:01:25.6]} 24... Bg5 {[%clk 0:00:42.2]} 25. Nf3 {[%clk
0:01:14.4]} 25... Bf4 {[%clk 0:00:38.2]} 26. Rd1 {[%clk 0:00:55.9]} 26... Ne4
{[%clk 0:00:37]} 27. Nxe4 {[%clk 0:00:34]} 27... dxe4 {[%clk 0:00:37.9]} 28. Nd4
{[%clk 0:00:31.4]} 28... Be3 {[%clk 0:00:37.8]} 29. f6 {[%clk 0:00:23.5]} 29...
Rfd8 {[%clk 0:00:34.9]} 30. c3 {[%clk 0:00:22.8]} 30... Rc5 {[%clk 0:00:31.3]}
31. Re1 {[%clk 0:00:14.8]} 31... Bxf2+ {[%clk 0:00:31.5]} 32. Kxf2 {[%clk
0:00:15.7]} 32... Rxe5 {[%clk 0:00:32.1]} 33. Ke3 {[%clk 0:00:13.1]} 33... Kf8
{[%clk 0:00:26.7]} 34. Rg1 {[%clk 0:00:11.3]} 34... Rg5 {[%clk 0:00:26.3]} 35.
h4 {[%clk 0:00:11.1]} 35... Rg4 {[%clk 0:00:24.6]} 0-1

[Event "*** Titled Tuesday Blitz"]
[Site "Chess.com"]
[Date "2021.02.16"]
[Round "5"]
[White "Taran2004"]
[Black "Make_it_shine060"]
[Result "1-0"]
[WhiteElo "2412"]
[BlackElo "2179"]
[TimeControl "180+1"]
[EndTime "10:57:47 PST"]
[Termination "Taran2004 won on time"]

1. e4 {[%clk 0:03:00.9]} 1... c5 {[%clk 0:00:14.5]} 2. Nf3 {[%clk 0:02:59.8]}
2... d6 {[%clk 0:00:14.7]} 3. d4 {[%clk 0:02:59.9]} 3... cxd4 {[%clk 0:00:14.5]}
4. Qxd4 {[%clk 0:03:00.8]} 4... Nf6 {[%clk 0:00:14.8]} 5. Bb5+ {[%clk
0:02:58.9]} 5... Nc6 {[%clk 0:00:15.1]} 6. c4 {[%clk 0:02:57.8]} 6... Bd7 {[%clk
0:00:13]} 7. Bxc6 {[%clk 0:02:57.7]} 7... Bxc6 {[%clk 0:00:13.2]} 8. Nc3 {[%clk
0:02:58.2]} 8... g6 {[%clk 0:00:12.9]} 9. O-O {[%clk 0:02:56.8]} 9... Bg7 {[%clk
0:00:13.1]} 10. Qd3 {[%clk 0:02:57.3]} 10... O-O {[%clk 0:00:13.4]} 11. b3
{[%clk 0:02:57.1]} 11... Rc8 {[%clk 0:00:13.8]} 12. Bb2 {[%clk 0:02:56.9]} 12...
Nxe4 {[%clk 0:00:13.9]} 13. Nxe4 {[%clk 0:02:56.7]} 13... Bxb2 {[%clk
0:00:14.8]} 14. Rab1 {[%clk 0:02:54.7]} 14... Bg7 {[%clk 0:00:15.7]} 15. Rfe1
{[%clk 0:02:53.9]} 15... Qc7 {[%clk 0:00:14.5]} 16. Nc3 {[%clk 0:02:53.4]} 16...
Rfd8 {[%clk 0:00:14.7]} 17. Nd5 {[%clk 0:02:53.1]} 17... Bxd5 {[%clk 0:00:14.7]}
18. Qxd5 {[%clk 0:02:54]} 18... e6 {[%clk 0:00:14.7]} 19. Qd3 {[%clk 0:02:53.6]}
19... d5 {[%clk 0:00:15]} 20. cxd5 {[%clk 0:02:51.1]} 20... Rxd5 {[%clk
0:00:15.4]} 21. Qe4 {[%clk 0:02:51.8]} 21... Rcd8 {[%clk 0:00:15.1]} 22. h3
{[%clk 0:02:49.4]} 22... Qb6 {[%clk 0:00:14.8]} 23. Rbc1 {[%clk 0:02:47]} 23...
a6 {[%clk 0:00:14.6]} 24. h4 {[%clk 0:02:44.7]} 24... R5d6 {[%clk 0:00:14.7]}
25. h5 {[%clk 0:02:42.6]} 25... f5 {[%clk 0:00:13.9]} 26. Qc4 {[%clk 0:02:37.3]}
26... Rc6 {[%clk 0:00:13.8]} 27. Qe2 {[%clk 0:02:36.4]} 27... Rxc1 {[%clk
0:00:12.8]} 28. Rxc1 {[%clk 0:02:37.3]} 28... e5 {[%clk 0:00:11.9]} 29. Nxe5
{[%clk 0:02:33.2]} 29... Qe6 {[%clk 0:00:12.1]} 30. Qc4 {[%clk 0:02:31.1]} 30...
Qxc4 {[%clk 0:00:09.5]} 31. Nxc4 {[%clk 0:02:32]} 31... gxh5 {[%clk 0:00:09.4]}
32. Re1 {[%clk 0:02:27.5]} 32... b5 {[%clk 0:00:08.3]} 33. Nb6 {[%clk
0:02:24.5]} 33... Rb8 {[%clk 0:00:08.1]} 34. Nd7 {[%clk 0:02:23.7]} 34... Rd8
{[%clk 0:00:08.3]} 35. Nc5 {[%clk 0:02:21.4]} 35... Rc8 {[%clk 0:00:07.9]} 36.
Nxa6 {[%clk 0:02:18.1]} 36... Ra8 {[%clk 0:00:07.2]} 37. Nc7 {[%clk 0:02:16.8]}
37... Rxa2 {[%clk 0:00:06.6]} 38. Nxb5 {[%clk 0:02:17.2]} 38... Rb2 {[%clk
0:00:06.2]} 39. Nd6 {[%clk 0:02:16.3]} 39... Rxb3 {[%clk 0:00:05.9]} 40. Nxf5
{[%clk 0:02:15.6]} 40... Bf8 {[%clk 0:00:05.7]} 41. g3 {[%clk 0:02:12.5]} 41...
h4 {[%clk 0:00:05.7]} 42. Nxh4 {[%clk 0:02:11.5]} 42... Bc5 {[%clk 0:00:06.6]}
43. Kg2 {[%clk 0:02:09]} 43... Rb2 {[%clk 0:00:07.5]} 44. Rf1 {[%clk 0:02:06.7]}
44... h5 {[%clk 0:00:08.4]} 45. Nf5 {[%clk 0:02:04.1]} 45... Kf7 {[%clk
0:00:08.1]} 46. Kf3 {[%clk 0:02:02.5]} 46... Kf6 {[%clk 0:00:07.9]} 47. Ne3
{[%clk 0:02:02.6]} 47... Rb3 {[%clk 0:00:07.9]} 48. Rc1 {[%clk 0:02:00.4]} 48...
Bxe3 {[%clk 0:00:06.8]} 49. fxe3 {[%clk 0:02:01.3]} 49... Kg5 {[%clk 0:00:06.9]}
50. Rc5+ {[%clk 0:02:01.4]} 50... Kg6 {[%clk 0:00:07.7]} 51. Kf4 {[%clk
0:02:01.7]} 51... Kf6 {[%clk 0:00:07.6]} 52. Rxh5 {[%clk 0:02:00.5]} 52... Rb4+
{[%clk 0:00:08.1]} 53. e4 {[%clk 0:02:00.6]} 53... Rc4 {[%clk 0:00:08]} 54. Rh6+
{[%clk 0:02:00.7]} 54... Kg7 {[%clk 0:00:08.1]} 55. Ra6 {[%clk 0:02:01.4]} 55...
Kf7 {[%clk 0:00:07.5]} 56. Kf5 {[%clk 0:02:01.3]} 56... Ke7 {[%clk 0:00:07.5]}
57. g4 {[%clk 0:02:01.3]} 57... Kf7 {[%clk 0:00:07.6]} 58. g5 {[%clk 0:02:01.5]}
58... Kg7 {[%clk 0:00:07.3]} 59. Ra7+ {[%clk 0:02:01.2]} 59... Kg8 {[%clk
0:00:06.6]} 60. e5 {[%clk 0:02:01.9]} 60... Kf8 {[%clk 0:00:05.5]} 61. Kf6
{[%clk 0:02:02.4]} 61... Rc6+ {[%clk 0:00:05.2]} 62. e6 {[%clk 0:02:02.6]} 62...
Kg8 {[%clk 0:00:05]} 63. g6 {[%clk 0:02:02.5]} 63... Rc8 {[%clk 0:00:00.9]} 64.
Rf7 {[%clk 0:01:59]} 1-0